fUST/lending_fUST_20250408
["ID","MTS","AMOUNT","RATE_DAILY","PERIOD"]
[357495600,1744089041832,-500.0,0.00019986,2]
[357495601,1744089041841,-500.0,0.00019986,2]
[357495602,1744089041851,-500.0,0.00019986,2]
[357495603,1744089041861,-633.23497598,0.00019986,2]
[357495604,1744089041871,-500.0,0.00019986,2]
[357495605,1744089041881,-500.0,0.00019986,2]
[357495606,1744089041891,-621.87,0.00019986,2]
[357495607,1744089041900,-737.3,0.00019986,2]
[357495608,1744089041910,-500.0,0.00019986,2]
[357495609,1744089041919,-500.0,0.00019986,2]
[357495610,1744089041929,-500.0,0.00019986,2]
[357495611,1744089041938,-795.71,0.00019986,2]
[357495612,1744089041949,-1271.72,0.00019986,2]
[357495613,1744089041958,-500.0,0.00019986,2]
[357495614,1744089041968,-500.0,0.00019986,2]
[357495615,1744089041978,-1510.87,0.00019986,2]
[357495616,1744089041988,-1537.45,0.00019986,2]
[357495617,1744089041997,-951.08,0.00019986,2]
[357495618,1744089042006,-500.0,0.00019986,2]
[357495619,1744089042016,-500.0,0.00019986,2]
[357495620,1744089042026,-500.0,0.00019986,2]
[357495621,1744089042035,-500.0,0.00019986,2]
[357495622,1744089042044,-840.84,0.00019986,2]
[357495623,1744089042054,-500.0,0.00019986,2]
[357495624,1744089042063,-500.0,0.00019986,2]
[357495625,1744089042073,-1496.91,0.00019986,2]
[357495626,1744089042083,-853.7,0.00019986,2]
[357495627,1744089042092,-500.0,0.00019986,2]
[357495628,1744089042102,-500.0,0.00019986,2]
[357495629,1744089042111,-500.0,0.00019986,2]
[357495630,1744089042120,-500.0,0.00019986,2]
[357495631,1744089042129,-500.0,0.00019987,2]
[357495632,1744089042140,-510.11333843,0.00019987,2]
[357495633,1744089042149,-504.32450102,0.00019987,2]
[357495634,1744089042159,-500.0,0.00019987,2]
[357495635,1744089042170,-504.41709093,0.00019987,2]
[357495636,1744089042179,-423.47281661,0.00019987,2]
[357495637,1744089042189,-292.88364408,0.00019987,2]
[357495638,1744089042200,-527.59599853,0.00019987,2]
[357495639,1744089042209,-505.40213356,0.00019987,2]
[357495640,1744089042219,-522.31158238,0.00019987,2]
[357495641,1744089042229,-500.0,0.00019987,2]
[357495642,1744089042239,-503.98955962,0.00019987,2]
[357495643,1744089042252,-513.37652047,0.00019987,2]
[357495645,1744089042263,-505.67203028,0.00019987,2]
[357495647,1744089042274,-507.67995819,0.00019987,2]
[357495648,1744089042284,-500.0,0.00019987,2]
[357495649,1744089042293,-509.10604764,0.00019987,2]
[357495650,1744089042303,-509.37693423,0.00019987,2]
[357495651,1744089042313,-500.0,0.00019987,2]
[357495652,1744089042322,-503.30408427,0.00019987,2]
[357495653,1744089042332,-501.89549307,0.00019987,2]
[357495654,1744089042341,-512.35219344,0.00019987,2]
[357495655,1744089042351,-500.0,0.00019987,2]
[357495656,1744089042361,-500.0,0.00019987,2]
[357495657,1744089042370,-511.08135144,0.00019987,2]
[357495658,1744089042380,-527.60797708,0.00019987,2]
[357495659,1744089042389,-501.61464251,0.00019987,2]
[357495660,1744089042399,-521.6136364,0.00019987,2]
[357495661,1744089042409,-502.60566812,0.00019987,2]
[357495662,1744089042418,-500.0,0.00019987,2]
[357495663,1744089042429,-513.59996259,0.00019987,2]
[357495664,1744089042440,-500.0,0.00019987,2]
[357495665,1744089042454,-500.0,0.00019987,2]
[357495666,1744089042464,-1035.57523732,0.00019987,2]
[357495668,1744089042474,-506.37406391,0.00019987,2]
[357495670,1744089042484,-500.0,0.00019987,2]
[357495671,1744089042493,-543.80616736,0.00019987,2]
[357495672,1744089042502,-725.31,0.00019987,2]
[357495673,1744089042513,-510.36447416,0.00019987,2]
[357495674,1744089042522,-551.29729779,0.00019987,2]
[357495675,1744089042531,-516.78743588,0.00019987,2]
[357495676,1744089042541,-506.07686052,0.00019987,2]
[357495677,1744089042550,-2542.45,0.00019987,2]
[357495678,1744089042560,-158.39455028,0.00019987,2]
[357495679,1744089042569,-522.68310626,0.00019987,2]
[357495680,1744089042579,-525.21994098,0.00019987,2]
[357495681,1744089042589,-500.0,0.00019987,2]
[357495682,1744089042599,-511.74402491,0.00019987,2]
[357495683,1744089042609,-505.79196557,0.00019987,2]
[357495684,1744089042619,-508.0100442,0.00019987,2]
[357495685,1744089042629,-500.0,0.00019987,2]
[357495687,1744089042638,-521.17515295,0.00019987,2]
[357495688,1744089042648,-530.76566669,0.00019987,2]
[357495689,1744089042657,-500.0,0.00019987,2]
[357495690,1744089042719,-500.0,0.00019987,2]
[357495691,1744089042732,-506.98514916,0.00019987,2]
[357495692,1744089042743,-512.46554914,0.00019987,2]
[357495693,1744089042753,-559.99656101,0.00019987,2]
[357495694,1744089042764,-519.64895614,0.00019987,2]
[357495695,1744089042776,-554.7933296,0.00019987,2]
[357495696,1744089042786,-500.0,0.00019987,2]
[357495697,1744089042797,-534.73842873,0.00019987,2]
[357495698,1744089042807,-552.13746634,0.00019987,2]
[357495699,1744089042818,-518.91904631,0.00019987,2]
[357495700,1744089042830,-529.33434398,0.00019987,2]
[357495701,1744089042840,-500.0,0.00019987,2]
[357495702,1744089042850,-521.17589694,0.00019987,2]
[357495703,1744089042860,-531.61858982,0.00019987,2]
[357495704,1744089042870,-525.67180141,0.00019987,2]
[357495705,1744089042881,-522.92913826,0.00019987,2]
[357495706,1744089042891,-540.5420821,0.00019987,2]
[357495707,1744089042901,-512.40371669,0.00019987,2]
[357495708,1744089042911,-526.99733675,0.00019987,2]
[357495709,1744089042922,-522.55971972,0.00019987,2]
[357495710,1744089042931,-514.82452191,0.00019987,2]
[357495711,1744089042941,-565.65894293,0.00019987,2]
[357495712,1744089042952,-529.8976247,0.00019987,2]
[357495713,1744089042962,-500.0,0.00019987,2]
[357495714,1744089042972,-529.37006775,0.00019987,2]
[357495715,1744089042983,-500.0,0.00019987,2]
[357495716,1744089042993,-506.92231829,0.00019987,2]
[357495717,1744089043005,-500.0,0.00019987,2]
[357495718,1744089043015,-570.45244016,0.00019987,2]
[357495719,1744089043026,-500.0,0.00019987,2]
[357495720,1744089043036,-518.3848803,0.00019987,2]
[357495721,1744089043045,-500.0,0.00019987,2]
[357495722,1744089043055,-500.0,0.00019987,2]
[357495723,1744089043066,-500.0,0.00019987,2]
[357495724,1744089043076,-512.6842164,0.00019987,2]
[357495725,1744089043089,-532.7810153,0.00019987,2]
[357495726,1744089043101,-500.0,0.00019987,2]
[357495727,1744089043112,-500.0,0.00019987,2]
[357495728,1744089043127,-500.0,0.00019987,2]
[357495729,1744089043138,-521.16594285,0.00019987,2]
[357495730,1744089043149,-516.74138944,0.00019987,2]
[357495731,1744089043160,-500.0,0.00019987,2]
[357495732,1744089043171,-548.34977707,0.00019987,2]
[357495733,1744089043181,-490.0,0.00019987,2]
[357495734,1744089043192,-504.06568455,0.00019987,2]
[357495735,1744089043202,-500.0,0.00019987,2]
[357495736,1744089043212,-507.52847409,0.00019987,2]
[357495737,1744089043223,-500.0,0.00019987,2]
[357495739,1744089043233,-519.78415533,0.00019987,2]
[357495740,1744089043244,-519.83658982,0.00019987,2]
[357495741,1744089043255,-500.0,0.00019987,2]
[357495743,1744089043267,-500.0,0.00019987,2]
[357495744,1744089043276,-500.0,0.00019987,2]
[357495745,1744089043287,-500.0,0.00019987,2]
[357495746,1744089043297,-864.99,0.00019987,2]
[357495747,1744089043308,-500.0,0.00019987,2]
[357495748,1744089043320,-500.0,0.00019987,2]
[357495749,1744089043330,-500.0,0.00019987,2]
[357495750,1744089043341,-500.0,0.00019987,2]
[357495751,1744089043352,-500.0,0.00019987,2]
[357495752,1744089043362,-535.95873475,0.00019988,2]
[357495753,1744089043371,-500.0,0.00019988,2]
[357495754,1744089043382,-590.34969171,0.00019988,2]
[357495755,1744089043391,-500.0,0.00019988,2]
[357495756,1744089043401,-610.0558422,0.00019988,2]
[357495757,1744089043411,-500.0,0.00019988,2]
[357495758,1744089043420,-502.04206776,0.00019988,2]
[357495759,1744089043433,-501.24232997,0.00019988,2]
[357495760,1744089043443,-338.42336301,0.00019988,2]
[357495761,1744089043453,-502.20083565,0.00019988,2]
[357495762,1744089043463,-500.0,0.00019988,2]
[357495763,1744089043474,-500.0,0.00019988,2]
[357495764,1744089043483,-500.0,0.00019988,2]
[357495765,1744089043493,-500.0,0.00019988,2]
[357495766,1744089043503,-500.0,0.00019988,2]
[357495767,1744089043513,-500.0,0.00019988,2]
[357495768,1744089043522,-500.0,0.00019988,2]
[357495769,1744089043532,-500.0,0.00019988,2]
[357495770,1744089043542,-500.0,0.00019988,2]
[357495771,1744089043551,-500.0,0.00019988,2]
[357495772,1744089043561,-500.0,0.00019988,2]
[357495773,1744089043571,-500.0,0.00019988,2]
[357495774,1744089043580,-522.54384848,0.00019988,2]
[357495775,1744089043590,-500.0,0.00019988,2]
[357495776,1744089043599,-4628.0,0.0002,2]
[357495777,1744089043609,-156.587,0.0002003,2]
[357495778,1744089043618,-162.380719,0.00020085,2]
[357495779,1744089043628,-168.3888056,0.0002014,2]
[357495780,1744089043638,-152.0,0.0002016,2]
[357495781,1744089043647,-301.31602124,0.00020195,2]
[357495782,1744089043657,-500.0,0.00020257,2]
[357495783,1744089043666,-3306.77,0.00020257,2]
[357495784,1744089043676,-1076.62,0.00020257,2]
[357495785,1744089043686,-500.0,0.00020257,2]
[357495786,1744089043695,-871.92,0.00020258,2]
[357495787,1744089043705,-500.0,0.00020258,2]
[357495788,1744089043714,-500.0,0.00020258,2]
[357495789,1744089043725,-1067.01,0.00020258,2]
[357495790,1744089043734,-500.0,0.00020258,2]
[357495791,1744089043744,-500.0,0.00020258,2]
[357495792,1744089043754,-3362.4,0.00020258,2]
[357495793,1744089043764,-1275.39,0.00020258,2]
[357495794,1744089043774,-1270.81,0.00020258,2]
[357495795,1744089043784,-747.45,0.00020258,2]
[357495796,1744089043794,-1851.44,0.00020258,2]
[357495797,1744089043803,-500.0,0.00020258,2]
[357495798,1744089043813,-716.97,0.00020258,2]
[357495799,1744089043823,-500.0,0.00020258,2]
[357495800,1744089043832,-500.0,0.00020258,2]
[357495801,1744089043842,-1266.24,0.00020258,2]
[357495802,1744089043851,-1102.77,0.00020258,2]
[357495803,1744089043861,-500.0,0.00020258,2]
[357495804,1744089043871,-500.0,0.00020258,2]
[357495805,1744089043881,-500.0,0.00020258,2]
[357495806,1744089043891,-794.99,0.00020258,2]
[357495807,1744089043901,-500.0,0.00020258,2]
[357495808,1744089043911,-500.0,0.00020258,2]
[357495809,1744089043921,-1509.7,0.00020258,2]
[357495810,1744089043930,-1897.89,0.00020258,2]
[357495811,1744089043939,-500.0,0.00020259,2]
[357495812,1744089043949,-500.0,0.00020259,2]
[357495813,1744089043959,-500.0,0.00020259,2]
[357495814,1744089043969,-500.0,0.00020259,2]
[357495815,1744089043979,-500.0,0.00020259,2]
[357495816,1744089043989,-500.0,0.00020259,2]
[357495817,1744089043999,-500.0,0.00020259,2]
[357495818,1744089044009,-500.0,0.00020259,2]
[357495819,1744089044019,-500.0,0.00020259,2]
[357495820,1744089044030,-227.70453301,0.00020259,2]
[357495821,1744089044039,-500.0,0.00020259,2]
[357495822,1744089044048,-500.0,0.00020259,2]
[357495823,1744089044058,-500.0,0.00020259,2]
[357495824,1744089044067,-500.0,0.00020259,2]
[357495825,1744089044077,-500.0,0.00020259,2]
[357495826,1744089044087,-500.0,0.00020259,2]
[357495827,1744089044097,-500.0,0.00020259,2]
[357495828,1744089044107,-500.0,0.00020259,2]
[357495829,1744089044117,-500.0,0.00020259,2]
[357495830,1744089044127,-201.25648485,0.00020259,2]
[357495831,1744089044136,-500.0,0.00020259,2]
[357495832,1744089044145,-500.0,0.00020259,2]
[357495833,1744089044155,-842.38,0.00020259,2]
[357495834,1744089044164,-500.0,0.00020259,2]
[357495835,1744089044174,-500.0,0.00020259,2]
[357495836,1744089044184,-500.0,0.00020259,2]
[357495837,1744089044194,-500.0,0.00020259,2]
[357495838,1744089044204,-500.0,0.00020259,2]
[357495839,1744089044214,-615.44,0.00020259,2]
[357495840,1744089044224,-500.0,0.00020259,2]
[357495841,1744089044234,-500.0,0.00020259,2]
[357495842,1744089044244,-500.0,0.00020259,2]
[357495843,1744089044254,-500.0,0.00020259,2]
[357495844,1744089044263,-500.0,0.00020259,2]
[357495845,1744089044273,-500.0,0.00020259,2]
[357495846,1744089044283,-500.0,0.00020259,2]
[357495847,1744089044293,-500.0,0.00020259,2]
[357495848,1744089044303,-500.0,0.00020259,2]
[357495849,1744089044313,-500.0,0.00020259,2]
[357495850,1744089044323,-500.0,0.00020259,2]
[357495851,1744089044333,-500.0,0.00020259,2]
[357495852,1744089044343,-500.0,0.00020259,2]
[357495853,1744089044353,-500.0,0.00020259,2]
[357495854,1744089044364,-500.0,0.00020259,2]
[357495855,1744089044375,-568.58107368,0.00020259,2]
[357495856,1744089044385,-500.0,0.00020259,2]
[357495857,1744089044395,-500.0,0.00020259,2]
[357495858,1744089044405,-500.0,0.00020259,2]
[357495859,1744089044415,-500.0,0.00020259,2]
[357495860,1744089044426,-500.0,0.00020259,2]
[357495861,1744089044440,-500.0,0.00020259,2]
[357495862,1744089044452,-500.0,0.00020259,2]
[357495863,1744089044463,-500.0,0.00020259,2]
[357495864,1744089044473,-500.0,0.00020259,2]
[357495865,1744089044484,-500.0,0.00020259,2]
[357495866,1744089044494,-500.0,0.00020259,2]
[357495867,1744089044504,-500.0,0.00020259,2]
[357495868,1744089044517,-500.0,0.00020259,2]
[357495869,1744089044527,-500.0,0.00020259,2]
[357495870,1744089044538,-500.0,0.00020259,2]
[357495871,1744089044548,-871.68,0.00020259,2]
[357495872,1744089044558,-500.0,0.00020259,2]
[357495873,1744089044567,-779.37,0.00020259,2]
[357495874,1744089044577,-1498.88,0.00020259,2]
[357495875,1744089044587,-500.0,0.00020259,2]
[357495876,1744089044597,-500.0,0.00020259,2]
[357495877,1744089044607,-500.0,0.00020259,2]
[357495878,1744089044617,-914.47,0.00020259,2]
[357495879,1744089044627,-500.0,0.00020259,2]
[357495880,1744089044637,-500.0,0.00020259,2]
[357495881,1744089044647,-500.0,0.00020259,2]
[357495882,1744089044657,-500.0,0.00020259,2]
[357495883,1744089044666,-1105.01,0.00020259,2]
[357495884,1744089044676,-500.0,0.00020259,2]
[357495885,1744089044687,-500.0,0.00020259,2]
[357495886,1744089044698,-500.0,0.00020259,2]
[357495887,1744089044708,-500.0,0.00020259,2]
[357495888,1744089044719,-500.0,0.00020259,2]
[357495889,1744089044729,-500.0,0.00020259,2]
[357495890,1744089044739,-500.0,0.00020259,2]
[357495891,1744089044748,-500.0,0.00020259,2]
[357495892,1744089044758,-500.0,0.00020259,2]
[357495893,1744089044769,-500.0,0.00020259,2]
[357495894,1744089044778,-500.0,0.00020259,2]
[357495895,1744089044788,-500.0,0.00020259,2]
[357495896,1744089044798,-500.0,0.00020259,2]
[357495897,1744089044808,-500.0,0.00020259,2]
[357495898,1744089044818,-500.0,0.00020259,2]
[357495899,1744089044828,-870.44,0.00020259,2]
[357495900,1744089044838,-2158.84,0.00020259,2]
[357495901,1744089044847,-506.33839603,0.00020259,2]
[357495902,1744089044857,-831.16,0.00020259,2]
[357495903,1744089044867,-500.0,0.00020259,2]
[357495904,1744089044877,-500.0,0.00020259,2]
[357495905,1744089044888,-274.23868181,0.00020259,2]
[357495906,1744089044898,-500.0,0.00020259,2]
[357495907,1744089044908,-500.0,0.00020259,2]
[357495908,1744089044917,-500.0,0.00020259,2]
[357495909,1744089044927,-505.39327323,0.00020259,2]
[357495910,1744089044938,-500.0,0.00020259,2]
[357495911,1744089044948,-1599.58,0.00020259,2]
[357495912,1744089044958,-500.0,0.00020259,2]
[357495913,1744089044968,-790.4,0.00020259,2]
[357495914,1744089044979,-890.44,0.00020259,2]
[357495915,1744089044989,-807.26,0.00020259,2]
[357495916,1744089044999,-500.0,0.00020259,2]
[357495917,1744089045008,-500.0,0.00020259,2]
[357495918,1744089045018,-500.0,0.00020259,2]
[357495919,1744089045028,-5903.44,0.00020259,2]
[357495920,1744089045037,-631.24,0.00020259,2]
[357495921,1744089045047,-588.4,0.00020259,2]
[357495922,1744089045058,-500.0,0.00020259,2]
[357495923,1744089045067,-1110.71,0.0002026,2]
[357495924,1744089045077,-500.0,0.0002026,2]
[357495925,1744089045087,-500.0,0.0002026,2]
[357495926,1744089045098,-500.0,0.0002026,2]
[357495927,1744089045108,-500.0,0.0002026,2]
[357495928,1744089045118,-922.18,0.0002026,2]
[357495929,1744089045128,-500.0,0.0002026,2]
[357495930,1744089045138,-500.0,0.0002026,2]
[357495932,1744089045148,-755.95,0.0002026,2]
[357495933,1744089045158,-718.24,0.0002026,2]
[357495934,1744089045168,-500.0,0.0002026,2]
[357495935,1744089045178,-858.2,0.0002026,2]
[357495936,1744089045188,-870.52,0.0002026,2]
[357495937,1744089045200,-500.0,0.0002026,2]
[357495938,1744089045210,-500.0,0.0002026,2]
[357495939,1744089045219,-500.0,0.0002026,2]
[357495940,1744089045229,-500.0,0.0002026,2]
[357495941,1744089045239,-508.9054363,0.0002026,2]
[357495942,1744089045249,-500.0,0.0002026,2]
[357495943,1744089045258,-500.0,0.0002026,2]
[357495944,1744089045268,-165.56989412,0.0002026,2]
[357495945,1744089045279,-621.87,0.0002026,2]
[357495946,1744089045289,-737.3,0.0002026,2]
[357495947,1744089045299,-500.0,0.0002026,2]
[357495948,1744089045309,-795.71,0.0002026,2]
[357495949,1744089045319,-1271.72,0.0002026,2]
[357495950,1744089045329,-500.0,0.0002026,2]
[357495951,1744089045339,-1510.87,0.0002026,2]
[357495952,1744089045350,-1537.45,0.0002026,2]
[357495953,1744089045360,-951.08,0.0002026,2]
[357495954,1744089045370,-500.0,0.0002026,2]
[357495955,1744089045380,-500.0,0.0002026,2]
[357495956,1744089045391,-840.84,0.0002026,2]
[357495957,1744089045402,-500.0,0.0002026,2]
[357495958,1744089045413,-500.0,0.0002026,2]
[357495959,1744089045423,-1496.91,0.0002026,2]
[357495960,1744089045438,-853.7,0.0002026,2]
[357495961,1744089045449,-500.0,0.0002026,2]
[357495962,1744089045460,-500.0,0.0002026,2]
[357495963,1744089045471,-500.0,0.0002026,2]
[357495964,1744089045481,-500.0,0.00020261,2]
[357495966,1744089045491,-522.72738121,0.00020261,2]
[357495967,1744089045502,-500.0,0.00020261,2]
[357495968,1744089045513,-500.0,0.00020261,2]
[357495969,1744089045523,-500.0,0.00020261,2]
[357495970,1744089045533,-500.0,0.00020261,2]
[357495971,1744089045544,-725.31,0.00020261,2]
[357495972,1744089045554,-2542.45,0.00020261,2]
[357495973,1744089045564,-500.0,0.00020261,2]
[357495974,1744089045574,-500.0,0.00020261,2]
[357495975,1744089045584,-500.0,0.00020261,2]
[357495976,1744089045594,-500.0,0.00020261,2]
[357495977,1744089045605,-533.16709296,0.00020261,2]
[357495978,1744089045615,-562.62133746,0.00020261,2]
[357495979,1744089045625,-500.0,0.00020261,2]
[357495980,1744089045635,-534.47848095,0.00020261,2]
[357495981,1744089045645,-500.0,0.00020261,2]
[357495982,1744089045655,-500.0,0.00020261,2]
[357495983,1744089045665,-500.0,0.00020261,2]
[357495984,1744089045675,-500.0,0.00020261,2]
[357495985,1744089045686,-500.0,0.00020261,2]
[357495986,1744089045696,-500.0,0.00020261,2]
[357495987,1744089045706,-500.0,0.00020261,2]
[357495988,1744089045717,-500.0,0.00020261,2]
[357495989,1744089045727,-864.99,0.00020261,2]
[357495990,1744089045738,-500.0,0.00020261,2]
[357495991,1744089045748,-500.0,0.00020261,2]
[357495992,1744089045758,-500.0,0.00020261,2]
[357495993,1744089045768,-500.0,0.00020261,2]
[357495994,1744089045778,-500.0,0.00020262,2]
[357495995,1744089045789,-500.0,0.00020262,2]
[357495996,1744089045798,-500.0,0.00020262,2]
[357495997,1744089045808,-500.0,0.00020262,2]
[357495998,1744089045818,-500.0,0.00020262,2]
[357495999,1744089045828,-500.0,0.00020262,2]
[357496001,1744089045838,-500.0,0.00020262,2]
[357496002,1744089045848,-236.33364969,0.00020262,2]
[357496003,1744089045858,-500.0,0.00020262,2]
[357496004,1744089045868,-500.0,0.00020262,2]
[357496005,1744089045878,-500.75272988,0.00020273,2]
[357496006,1744089045888,-343.83498097,0.00020273,2]
[357496007,1744089045898,-500.0,0.00020273,2]
[357496008,1744089045908,-500.0,0.00020531,2]
[357496009,1744089045918,-3306.77,0.00020531,2]
[357496010,1744089045929,-1076.62,0.00020531,2]
[357496011,1744089045939,-500.0,0.00020531,2]
[357496012,1744089045949,-871.92,0.00020532,2]
[357496013,1744089045960,-500.0,0.00020532,2]
[357496014,1744089045969,-500.0,0.00020532,2]
[357496015,1744089045979,-1067.01,0.00020532,2]
[357496016,1744089045990,-500.0,0.00020532,2]
[357496017,1744089046000,-500.0,0.00020532,2]
[357496018,1744089046010,-3362.4,0.00020532,2]
[357496019,1744089046020,-1275.39,0.00020532,2]
[357496020,1744089046030,-1270.81,0.00020532,2]
[357496021,1744089046040,-747.45,0.00020532,2]
[357496022,1744089046050,-1851.44,0.00020532,2]
[357496023,1744089046060,-500.0,0.00020532,2]
[357496024,1744089046070,-716.97,0.00020532,2]
[357496025,1744089046080,-500.0,0.00020532,2]
[357496026,1744089046090,-500.0,0.00020532,2]
[357496027,1744089046100,-1266.24,0.00020532,2]
[357496028,1744089046110,-1102.77,0.00020532,2]
[357496029,1744089046120,-500.0,0.00020532,2]
[357496030,1744089046130,-153.374637,0.00020532,2]
[357496031,1744089046140,-794.99,0.00020532,2]
[357496032,1744089046150,-500.0,0.00020532,2]
[357496033,1744089046159,-500.0,0.00020532,2]
[357496034,1744089046169,-1509.7,0.00020532,2]
[357496035,1744089046180,-1897.89,0.00020532,2]
[357496036,1744089046190,-528.24011418,0.00020533,2]
[357496037,1744089046200,-500.0,0.00020533,2]
[357496038,1744089046209,-500.0,0.00020533,2]
[357496039,1744089046219,-500.0,0.00020533,2]
[357496040,1744089046230,-500.0,0.00020533,2]
[357496041,1744089046240,-500.0,0.00020533,2]
[357496042,1744089046250,-500.0,0.00020533,2]
[357496043,1744089046261,-634.74714463,0.00020533,2]
[357496044,1744089046271,-500.0,0.00020533,2]
[357496045,1744089046281,-500.0,0.00020533,2]
[357496046,1744089046292,-842.38,0.00020533,2]
[357496047,1744089046302,-500.0,0.00020533,2]
[357496048,1744089046312,-500.0,0.00020533,2]
[357496049,1744089046322,-500.0,0.00020533,2]
[357496050,1744089046332,-615.44,0.00020533,2]
[357496051,1744089046342,-500.0,0.00020533,2]
[357496052,1744089046352,-500.0,0.00020533,2]
[357496053,1744089046362,-500.0,0.00020533,2]
[357496054,1744089046372,-500.0,0.00020533,2]
[357496055,1744089046382,-500.0,0.00020533,2]
[357496056,1744089046392,-500.0,0.00020533,2]
[357496057,1744089046402,-500.0,0.00020533,2]
[357496058,1744089046412,-500.0,0.00020533,2]
[357496059,1744089046422,-530.09526081,0.00020533,2]
[357496060,1744089046435,-500.0,0.00020533,2]
[357496061,1744089046444,-500.0,0.00020533,2]
[357496062,1744089046454,-500.0,0.00020533,2]
[357496063,1744089046464,-500.0,0.00020533,2]
[357496064,1744089046475,-500.0,0.00020533,2]
[357496065,1744089046485,-500.0,0.00020533,2]
[357496066,1744089046495,-500.0,0.00020533,2]
[357496067,1744089046505,-500.0,0.00020533,2]
[357496068,1744089046516,-500.0,0.00020533,2]
[357496069,1744089046527,-500.0,0.00020533,2]
[357496070,1744089046538,-500.0,0.00020533,2]
[357496071,1744089046548,-500.0,0.00020533,2]
[357496072,1744089046558,-172.40849306,0.00020533,2]
[357496073,1744089046569,-500.0,0.00020533,2]
[357496074,1744089046579,-871.68,0.00020533,2]
[357496075,1744089046589,-500.0,0.00020533,2]
[357496076,1744089046600,-779.37,0.00020533,2]
[357496077,1744089046610,-1498.88,0.00020533,2]
[357496078,1744089046620,-538.07385075,0.00020533,2]
[357496079,1744089046631,-500.0,0.00020533,2]
[357496080,1744089046641,-500.0,0.00020533,2]
[357496081,1744089046651,-914.47,0.00020533,2]
[357496082,1744089046661,-500.0,0.00020533,2]
[357496083,1744089046672,-500.0,0.00020533,2]
[357496084,1744089046827,-500.0,0.00020533,2]
[357496085,1744089046839,-1105.01,0.00020533,2]
[357496086,1744089046849,-500.0,0.00020533,2]
[357496087,1744089046858,-500.0,0.00020533,2]
[357496088,1744089046868,-500.0,0.00020533,2]
[357496089,1744089046878,-500.0,0.00020533,2]
[357496090,1744089046888,-500.0,0.00020533,2]
[357496091,1744089046897,-500.0,0.00020533,2]
[357496092,1744089046907,-500.0,0.00020533,2]
[357496093,1744089046916,-536.67063753,0.00020533,2]
[357496094,1744089046926,-500.0,0.00020533,2]
[357496095,1744089046935,-500.0,0.00020533,2]
[357496096,1744089046946,-500.0,0.00020533,2]
[357496097,1744089046956,-500.0,0.00020533,2]
[357496098,1744089046965,-500.0,0.00020533,2]
[357496099,1744089046975,-500.0,0.00020533,2]
[357496100,1744089046984,-500.0,0.00020533,2]
[357496101,1744089046994,-870.44,0.00020533,2]
[357496102,1744089047003,-2158.84,0.00020533,2]
[357496103,1744089047014,-831.16,0.00020533,2]
[357496104,1744089047024,-500.0,0.00020533,2]
[357496105,1744089047033,-500.0,0.00020533,2]
[357496106,1744089047043,-500.0,0.00020533,2]
[357496107,1744089047053,-500.0,0.00020533,2]
[357496108,1744089047063,-500.0,0.00020533,2]
[357496109,1744089047072,-500.0,0.00020533,2]